bitfinex/quotes_SOLUSD_20251120
["timestamp","ask_amount","ask_price","bid_price","bid_amount"]
[1763618816586,1.64,144.03,144.02,6.94348007]
[1763618824683,35.47046914,144.1,144.03,9.78882769]
[1763618824684,0.66,144.09,144.03,9.78882769]
[1763618824901,0.66,144.09,144.06,2.58982553]
[1763618825480,0.66,144.09,144.04,0.2]
[1763618825682,0.66,144.09,144.06,2.58982553]
[1763618826101,2.3,144.11,144.07,2.58982553]
[1763618826398,0.66,144.11,144.08,2.58982553]
[1763618826585,0.66,144.11,144.09,6.94010687]
[1763618827872,1.64,144.12,144.1,0.2]
[1763618828120,0.66,144.16,144.12,18.12096]
[1763618828285,2.58982553,144.14,144.09,24.29037406]
[1763618828604,1.64,144.13,144.09,9.5299324]
[1763618828813,2.3,144.13,144.09,26.88019959]
[1763618828984,0.66,144.12,144.09,26.88019959]
[1763618830401,1.64,144.13,144.1,2.58982553]
[1763618830598,0.66,144.17,144.13,24.28363282]
[1763618830801,2.3,144.17,144.13,26.87345835]
[1763618831010,2.3,144.17,144.14,2.58982553]
[1763618831307,1.64,144.17,144.14,2.58982553]
[1763618831685,2.3,144.17,144.14,2.58982553]
[1763618831886,2.3,144.17,144.15,6.93721817]
[1763618832894,0.66,144.16,144.15,6.93721817]
[1763618834011,0.66,144.16,144.14,6.93769945]
[1763618836603,1.64,144.17,144.15,2.58982553]
[1763618837116,0.66,144.17,144.16,2.58982553]
[1763618837300,1.64,144.18,144.16,2.58982553]
[1763618837508,2.3,144.18,144.16,2.58982553]
[1763618838422,2.3,144.18,144.17,6.9362558]
[1763618839114,2.3,144.18,144.16,6.93658883]
[1763618839300,0.66,144.17,144.16,6.93658883]
[1763618839508,0.66,144.17,144.14,6.93769945]
[1763618839821,0.66,144.17,144.14,9.52752498]
[1763618841116,0.66,144.17,144.14,26.87177362]
[1763618842623,3.24982553,144.17,144.14,6.93769945]
[1763618842816,4.70872102,144.17,144.14,6.93769945]
[1763618843016,0.69,144.16,144.14,6.93769945]
[1763618843317,4.73872102,144.16,144.14,6.93769945]
[1763618843519,0.69,144.16,144.14,6.93769945]
[1763618843818,0.69,144.15,144.14,6.93769945]
[1763618844601,0.69,144.15,144.13,6.9381808]
[1763618846397,0.69,144.15,144.11,6.93897002]
[1763618846398,5.68872102,144.14,144.11,6.93897002]
[1763618846602,5.68872102,144.14,144.1,6.93962526]
[1763618846801,0.69,144.13,144.1,6.93962526]
[1763618846998,0.69,144.13,144.1,10.98834628]
[1763618847221,0.69,144.13,144.1,6.93962526]
[1763618849822,0.69,144.13,144.1,10.98834628]
[1763618850024,1.64,144.14,144.1,11.18834628]
[1763618850212,2.3,144.14,144.11,4.04872102]
[1763618850618,0.66,144.13,144.1,28.33740943]
[1763618851328,0.66,144.13,144.1,6.93962526]
[1763618851826,4.70872102,144.13,144.09,6.93976528]
[1763618852201,0.66,144.12,144.09,10.9884863]
[1763618852907,1.64,144.12,144.1,4.04872102]
[1763618853302,1.64,144.12,144.11,6.9391437]
[1763618854518,1.64,144.14,144.11,11.18786472]
[1763618854712,1.64,144.14,144.12,4.04872102]
[1763618854917,0.66,144.13,144.11,6.9391437]
[1763618856002,0.66,144.13,144.1,6.93956266]
[1763618856203,4.70872102,144.13,144.09,6.93995495]
[1763618856428,11.64695918,144.13,144.09,6.93995495]
[1763618856603,0.66,144.12,144.09,6.93995495]
[1763618858013,0.66,144.12,144.08,6.94038817]
[1763618858210,4.04872102,144.1,144.05,4.04872102]
[1763618858412,5.68872102,144.09,144.04,10.99123698]
[1763618858625,5.68872102,144.09,144.05,5.15845283]
[1763618858933,0.66,144.08,144.04,10.99123698]
[1763618859139,0.66,144.08,144.05,5.15845545]
[1763618859334,0.66,144.08,144.04,28.34752689]
[1763618859634,0.66,144.08,144.05,9.20937416]
[1763618859836,0.66,144.08,144.05,4.04872102]
[1763618861234,0.66,144.1,144.07,10.98979133]
[1763618861404,2.3,144.12,144.09,4.04872102]
[1763618861806,0.66,144.11,144.09,4.04872102]
[1763618862436,0.66,144.11,144.09,10.98840028]
[1763618863045,0.66,144.11,144.09,6.93967926]
[1763618865230,1.64,144.12,144.09,28.33866747]
[1763618865420,1.64,144.12,144.08,0.2]
[1763618865421,4.70872102,144.11,144.08,6.9403718]
[1763618865945,0.66,144.1,144.08,6.9403718]
[1763618866149,1.64,144.12,144.09,4.04872102]
[1763618866455,1.64,144.12,144.08,6.9403718]
[1763618866456,0.66,144.11,144.08,6.9403718]
[1763618866624,4.70872102,144.11,144.09,5.16967013]
[1763618866955,0.66,144.1,144.08,6.9403718]
[1763618867152,0.66,144.1,144.07,6.94107031]
[1763618867327,0.66,144.1,144.08,5.17277517]
[1763618867644,0.66,144.1,144.07,6.94107031]
[1763618868150,0.66,144.1,144.08,5.17308594]
[1763618868357,4.70872102,144.1,144.07,6.94107031]
[1763618868736,0.66,144.09,144.07,6.94107031]
[1763618869137,0.66,144.09,144.06,6.94155213]
[1763618869459,1.64,144.08,144.06,6.94155213]
[1763618869637,5.68872102,144.08,144.06,6.94155213]
[1763618869821,4.70872102,144.1,144.06,6.94155213]
[1763618870020,0.68,144.09,144.07,5.17960413]
[1763618870220,2.32,144.09,144.06,6.94155213]
[1763618870453,2.32,144.09,144.07,5.17986424]
[1763618870753,2.32,144.09,144.06,6.94155213]
[1763618870944,2.32,144.09,144.07,12.12061785]
[1763618871121,2.32,144.09,144.07,6.94088515]
[1763618872049,1.64,144.1,144.08,9.22719185]
[1763618872257,1.64,144.1,144.08,4.04872102]
[1763618872822,1.64,144.1,144.09,5.17760321]
[1763618873937,1.64,144.1,144.09,12.11771008]
[1763618874530,1.64,144.1,144.09,16.1664311]
[1763618876053,1.64,144.1,144.09,12.11771008]
[1763618876263,0.68,144.14,144.09,33.71669829]
[1763618876441,1.64,144.13,144.1,9.22632423]
[1763618876628,1.64,144.13,144.1,4.04872102]
[1763618876629,2.32,144.13,144.1,4.04872102]
[1763618877257,2.32,144.13,144.11,6.9391437]
[1763618880851,1.64,144.13,144.11,11.18786472]
[1763618881237,0.68,144.15,144.12,4.04872102]
[1763618881745,0.68,144.18,144.14,4.04872102]
[1763618882062,0.68,144.17,144.15,4.04872102]
[1763618882446,1.64,144.19,144.16,4.04872102]
[1763618882651,2.32,144.19,144.16,4.04872102]
[1763618882852,1.64,144.19,144.17,6.9362558]
[1763618883165,2.32,144.19,144.17,6.9362558]
[1763618884159,0.68,144.19,144.17,6.9362558]
[1763618884342,0.68,144.19,144.15,4.04872102]
[1763618884343,0.68,144.18,144.15,4.04872102]
[1763618884536,0.68,144.18,144.14,10.98612463]
[1763618884736,0.68,144.18,144.14,28.33037327]
[1763618885759,4.72872102,144.18,144.14,24.28165225]
[1763618886160,0.68,144.17,144.14,24.28165225]
[1763618886346,0.68,144.17,144.14,28.33037327]
[1763618889675,0.68,144.17,144.14,10.98612463]
[1763618889876,0.68,144.17,144.14,6.93740361]
[1763618893858,0.68,144.17,144.14,28.33037327]
[1763618895072,4.04872102,144.2,144.15,4.04872102]
[1763618895258,2.32,144.19,144.15,4.04872102]
[1763618895661,0.68,144.18,144.15,4.04872102]
[1763618896356,0.68,144.18,144.16,6.93673695]
[1763618898565,0.68,144.18,144.16,10.98545797]
[1763618900179,1.64,144.19,144.17,4.04872102]
[1763618900353,1.64,144.19,144.18,6.93577472]
[1763618900354,2.32,144.19,144.18,6.93577472]
[1763618901878,1.64,144.19,144.18,6.93577472]
[1763618902089,0.68,144.19,144.18,6.93577472]
[1763618902272,2.32,144.2,144.18,6.93577472]
[1763618902468,0.68,144.2,144.18,6.93577472]
[1763618902662,1.64,144.21,144.18,10.98449574]
[1763618902856,0.68,144.2,144.18,10.98449574]
[1763618903179,2.32,144.21,144.18,28.32393255]
[1763618904098,0.68,144.2,144.18,28.32393255]
[1763618904864,0.68,144.2,144.18,26.8643384]
[1763618905073,0.68,144.2,144.16,2.58912687]
[1763618905378,3.26912687,144.2,144.16,6.93654546]
[1763618905592,0.68,144.2,144.16,9.52567233]
[1763618905883,0.68,144.19,144.16,6.93654546]
[1763618907084,0.68,144.19,144.15,9.52634504]
[1763618907287,0.68,144.19,144.15,6.93721817]
[1763618907288,3.26912687,144.19,144.15,6.93721817]
[1763618907466,10.20462027,144.19,144.15,6.93721817]
[1763618907659,0.66,144.18,144.15,6.93721817]
[1763618907860,1.64,144.17,144.15,6.93721817]
[1763618908301,0.66,144.16,144.15,6.93721817]
[1763618908991,0.66,144.16,144.14,6.93753343]
[1763618911395,2.58912687,144.15,144.1,9.78882769]
[1763618911695,2.58912687,144.15,144.1,9.52875213]
[1763618911892,0.66,144.14,144.1,9.52875213]
[1763618912081,1.64,144.13,144.1,9.52875213]
[1763618912482,0.66,144.12,144.1,9.52875213]
[1763618912687,0.66,144.12,144.09,6.93992031]
[1763618913002,0.66,144.12,144.09,9.52904718]
[1763618914196,0.66,144.12,144.1,2.58912687]
[1763618914370,0.66,144.12,144.08,7.14047552]
[1763618914578,0.66,144.12,144.08,6.94047552]
[1763618914772,0.66,144.12,144.08,9.52960239]
[1763618915290,7.59868584,144.12,144.08,9.52960239]
[1763618917385,2.3,144.11,144.08,2.58912687]
[1763618918000,2.3,144.11,144.09,6.94010687]
[1763618918697,2.3,144.11,144.07,2.58912687]
[1763618918698,0.66,144.1,144.07,2.58912687]
[1763618919106,0.66,144.1,144.07,9.53018782]
[1763618919680,2.58912687,144.09,144.04,16.73134365]
[1763618919917,3.24912687,144.08,144.04,6.94251596]
[1763618920209,1.64,144.07,144.04,9.53164283]
[1763618920508,2.3,144.07,144.04,9.53164283]
[1763618921093,2.3,144.07,144.05,2.58912687]
[1763618921407,1.64,144.08,144.06,2.58912687]
[1763618921701,2.3,144.08,144.05,2.58912687]
[1763618921895,0.66,144.07,144.05,2.58912687]
[1763618922796,1.64,144.08,144.06,6.94155213]
[1763618923100,2.3,144.08,144.06,6.94155213]
[1763618923298,1.64,144.08,144.06,6.94155213]
[1763618923499,0.66,144.07,144.06,6.94155213]
[1763618924789,0.66,144.07,144.05,6.94203401]
[1763618933781,1.64,144.08,144.05,2.78912687]
[1763618934013,0.72,144.09,144.06,2.58912687]
[1763618934204,2.36,144.09,144.06,2.58912687]
[1763618934403,0.72,144.08,144.06,2.58912687]
[1763618934707,0.72,144.08,144.05,12.37795456]
[1763618935279,0.72,144.08,144.05,9.78882769]
[1763618935594,0.72,144.08,144.05,12.37795456]
[1763618935983,0.72,144.08,144.06,6.94155213]
[1763618939314,2.36,144.08,144.06,6.94155213]
[1763618940809,2.36,144.08,144.06,9.530679]
[1763618941002,35.46706543,144.13,144.07,2.58912687]
[1763618941003,18.12096,144.13,144.07,2.58912687]
[1763618941220,2.36,144.12,144.08,26.88118683]
[1763618941526,1.64,144.11,144.09,2.58912687]
[1763618941832,2.36,144.11,144.09,2.58912687]
[1763618943421,0.72,144.1,144.09,6.93977599]
[1763618943726,0.72,144.1,144.08,6.94037335]
[1763618944325,0.72,144.1,144.08,9.52950022]
[1763618945418,2.36,144.11,144.08,26.88097162]
[1763618946020,0.72,144.1,144.08,26.88097162]
[1763618947139,2.36,144.11,144.08,26.88097162]
[1763618947517,0.72,144.1,144.08,6.94037335]
[1763618949834,0.72,144.1,144.07,6.94107031]
[1763618950141,0.72,144.1,144.07,26.88287296]
[1763618952624,3.30912687,144.1,144.06,6.94145117]
[1763618952823,0.72,144.1,144.07,2.58912687]
[1763618953038,0.72,144.09,144.07,2.58912687]
[1763618953347,0.72,144.09,144.06,9.53057804]
[1763618954129,0.72,144.09,144.06,26.88445836]
[1763618955763,0.72,144.09,144.06,24.29533149]
[1763618957929,0.72,144.09,144.06,30.13226083]
[1763618958460,0.72,144.09,144.06,24.29533149]
[1763618959034,1.64,144.1,144.07,0.2]
[1763618959364,2.36,144.1,144.07,0.2]
[1763618959860,2.36,144.1,144.07,6.03692934]
[1763618960040,2.36,144.1,144.07,8.62605621]
[1763618960427,2.36,144.1,144.08,5.83692934]
[1763618960738,2.34,144.1,144.07,5.83692934]
[1763618961360,0.7,144.1,144.08,6.94058856]
[1763618962453,0.7,144.1,144.08,12.7775179]
[1763618963330,0.7,144.1,144.08,6.94058856]
[1763618964058,0.7,144.1,144.08,12.7775179]
[1763618964269,2.34,144.12,144.09,2.58912687]
[1763618964642,2.34,144.12,144.09,8.42605621]
[1763618965061,0.7,144.11,144.09,8.42605621]
[1763618965256,1.64,144.12,144.1,2.58912687]
[1763618965462,0.7,144.14,144.11,2.58912687]
[1763618965640,0.7,144.14,144.12,2.58912687]
[1763618965953,0.7,144.15,144.12,2.58912687]
[1763618966260,0.7,144.15,144.13,9.52730767]
[1763618966642,0.7,144.15,144.13,6.9381808]
[1763618967635,0.7,144.15,144.13,10.98674526]
[1763618969534,1.64,144.16,144.14,4.04856446]
[1763618969535,2.34,144.16,144.14,4.04856446]
[1763618969938,2.34,144.16,144.13,28.33219728]
[1763618972646,1.64,144.16,144.13,28.33219728]
[1763618972846,0.7,144.15,144.14,4.04856446]
[1763618973852,0.7,144.15,144.14,10.98626391]
[1763618974368,1.64,144.16,144.14,11.18626391]
[1763618974561,1.64,144.16,144.15,4.04856446]
[1763618975946,0.7,144.19,144.15,28.32882806]
[1763618976253,0.7,144.19,144.16,4.04856446]
[1763618976456,0.7,144.19,144.15,28.32882806]
[1763618982476,11.68393787,144.19,144.14,6.93769945]
[1763618982669,4.74856446,144.18,144.13,10.98658082]
[1763618983060,0.7,144.17,144.13,10.98658082]
[1763618983263,1.64,144.16,144.13,10.98658082]
[1763618983462,0.7,144.15,144.13,10.98658082]
[1763618986186,0.7,144.15,144.13,6.93801636]
[1763618987081,4.74856446,144.15,144.1,25.44556534]
[1763618987375,4.74856446,144.15,144.1,21.39700088]
[1763618987584,0.7,144.14,144.1,21.39700088]
[1763618988080,0.7,144.14,144.11,6.9389321]
[1763618989182,4.74856446,144.14,144.11,6.9389321]
[1763618989385,4.74856446,144.14,144.08,39.52030631]
[1763618989386,11.68629446,144.14,144.08,39.52030631]
[1763618989681,0.7,144.13,144.09,10.98867133]
[1763618989882,1.64,144.12,144.09,28.33893852]
[1763618990295,38.95646369,144.18,144.11,4.04856446]
[1763618990580,38.95646369,144.18,144.12,4.04856446]
[1763618990581,0.67,144.14,144.12,4.04856446]
[1763618990970,0.67,144.14,144.11,4.04856446]
[1763618991281,1.64,144.13,144.1,4.04856446]
[1763618991784,0.67,144.12,144.09,28.33893852]
[1763618992490,0.67,144.12,144.09,24.29037406]
[1763618994374,0.67,144.12,144.09,28.33893852]
[1763618996479,0.67,144.12,144.09,10.98867133]
[1763618997076,0.67,144.12,144.09,6.94010687]
[1763618997392,0.67,144.12,144.03,15.602663]
[1763618997393,4.04856446,144.11,144.03,15.602663]
[1763618997567,4.04856446,144.1,144.03,15.602663]
[1763618997769,1.64,144.09,144.04,4.04856446]
[1763618997995,2.31,144.09,144.05,4.04856446]
[1763618998202,0.67,144.08,144.05,4.04856446]
[1763618998697,0.67,144.08,144.06,4.04856446]
[1763619000383,0.67,144.08,144.06,10.98992452]
[1763619000976,1.64,144.09,144.07,4.04856446]
[1763619001199,2.31,144.09,144.07,4.04856446]
[1763619002082,2.31,144.09,144.08,6.94058856]
[1763619002502,0.67,144.11,144.08,10.98915302]
[1763619002794,1.64,144.1,144.09,4.04856446]
[1763619002980,2.31,144.1,144.08,28.34062442]
[1763619005680,1.64,144.1,144.08,28.34062442]
[1763619005900,0.67,144.11,144.08,28.34062442]
[1763619006998,0.67,144.11,144.09,4.04856446]
[1763619007720,0.67,144.11,144.08,24.29205996]
[1763619008091,0.67,144.11,144.09,4.04856446]
[1763619008805,0.67,144.11,144.1,6.93962526]
[1763619009687,0.67,144.11,144.09,6.94010687]
[1763619014137,0.67,144.11,144.09,10.98867133]
[1763619017027,1.64,144.12,144.1,4.04856446]
[1763619017326,1.64,144.12,144.09,24.29037406]
[1763619017528,0.67,144.11,144.09,24.29037406]
[1763619018037,0.67,144.11,144.09,6.94010687]
[1763619020927,0.67,144.11,144.09,10.98867133]
[1763619024140,0.67,144.11,144.08,6.94058856]
[1763619024511,0.68,144.11,144.09,13.83739215]
[1763619024716,0.68,144.11,144.09,4.04856446]
[1763619025435,0.68,144.11,144.1,6.93962526]
[1763619028842,0.68,144.11,144.09,2.59229891]
[1763619031225,0.68,144.11,144.1,6.93962526]
[1763619034030,0.66,144.13,144.1,9.53192417]
[1763619034226,1.64,144.12,144.1,9.53192417]
[1763619034758,2.3,144.12,144.1,9.53192417]
[1763619035127,2.3,144.12,144.1,26.88098732]
[1763619035641,1.64,144.12,144.1,26.88098732]
[1763619036031,1.64,144.12,144.1,27.08098732]
[1763619036720,1.64,144.13,144.11,2.59229891]
[1763619036920,1.64,144.13,144.12,2.59229891]
[1763619037530,1.64,144.13,144.11,2.59229891]
[1763619038849,1.64,144.13,144.12,6.93866222]
[1763619039350,1.64,144.13,144.12,9.53096113]
[1763619039825,2.3,144.13,144.12,9.53096113]
[1763619040452,1.64,144.13,144.12,9.53096113]
[1763619043232,2.3,144.13,144.12,9.53096113]
[1763619043430,1.64,144.13,144.12,9.53096113]
[1763619045134,0.66,144.16,144.13,9.78882769]
[1763619045352,0.66,144.16,144.14,2.59229891]
[1763619045658,0.66,144.16,144.15,6.93721817]
[1763619046554,0.66,144.16,144.15,9.52951708]
[1763619047347,0.66,144.16,144.15,6.93721817]
[1763619050857,0.66,144.16,144.14,6.93748362]
[1763619052268,0.66,144.16,144.14,2.59229891]
[1763619053079,0.66,144.16,144.15,6.93721817]
[1763619058048,0.66,144.16,144.15,9.52951708]
[1763619059474,0.72,144.22,144.18,9.78882769]
[1763619059659,0.72,144.22,144.21,2.59229891]
[1763619060464,0.72,144.22,144.2,2.59229891]
[1763619062167,0.72,144.22,144.21,6.93433187]
[1763619065777,0.1,144.23,144.21,9.52663078]
[1763619065973,0.1,144.25,144.22,30.7020866]
[1763619066262,0.1,144.25,144.24,37.43497622]
[1763619066668,1e-08,144.27,144.26,59.78882769]
[1763619066859,0.1,144.3,144.28,27.90978769]
[1763619067053,0.1,144.3,144.28,30.5020866]
[1763619067282,0.1,144.3,144.28,30.6020866]
[1763619068170,0.1,144.3,144.28,34.84075525]
[1763619068480,0.1,144.3,144.28,37.43305416]
[1763619072260,0.82,144.29,144.28,27.64422647]
[1763619072786,2.46,144.29,144.26,6.93180585]
[1763619073104,9.39056894,144.29,144.25,2.59229891]
[1763619073304,0.72,144.28,144.24,2.59229891]
[1763619073505,0.72,144.28,144.23,2.59229891]
[1763619073879,3.31229891,144.28,144.23,2.59229891]
[1763619074193,3.31229891,144.28,144.22,9.52614997]
[1763619074400,0.72,144.27,144.23,2.59229891]
[1763619075201,0.72,144.27,144.23,9.52527712]
[1763619075587,0.72,144.27,144.24,2.59229891]
[1763619075908,0.72,144.27,144.23,6.93297821]
[1763619076107,1.64,144.26,144.23,6.93297821]
[1763619076505,0.72,144.25,144.23,6.93297821]
[1763619077206,0.72,144.25,144.23,2.59229891]
[1763619077893,0.72,144.25,144.22,19.92614547]
[1763619078398,10.24485761,144.25,144.2,6.93467614]
[1763619078591,3.31229891,144.25,144.2,9.52697505]
[1763619078794,0.72,144.24,144.2,9.52697505]
[1763619079195,0.72,144.24,144.2,26.86400695]
[1763619079504,0.72,144.24,144.21,2.59229891]
[1763619079888,0.72,144.24,144.22,2.59229891]
[1763619080093,0.72,144.24,144.23,2.59229891]
[1763619081102,0.66,144.27,144.23,9.52566922]
[1763619081305,1.64,144.26,144.24,2.59229891]
[1763619081691,1.64,144.26,144.23,6.93337031]
[1763619081692,0.66,144.28,144.25,2.59229891]
[1763619082009,1.64,144.27,144.25,2.59229891]
[1763619082387,2.3,144.27,144.25,2.59229891]
[1763619083213,2.3,144.27,144.26,6.93192846]
[1763619083526,1.64,144.27,144.26,6.93192846]
[1763619083880,0.1,144.29,144.26,9.52422737]
[1763619084088,2.3,144.28,144.27,2.59229891]
[1763619084826,2.3,144.28,144.26,9.52422737]
[1763619084983,0.66,144.27,144.26,6.93192846]
[1763619085184,0.66,144.27,144.23,35.45391016]
[1763619085383,0.66,144.27,144.24,2.59229891]
[1763619085611,0.66,144.27,144.24,9.52518853]
[1763619086892,0.66,144.27,144.24,6.93288962]
[1763619087191,0.66,144.27,144.21,27.90978769]
[1763619087192,0.66,144.27,144.22,2.59229891]
[1763619087408,0.66,144.27,144.23,2.59229891]
[1763619088202,7.59151196,144.27,144.23,2.59229891]
[1763619089115,7.59151196,144.27,144.23,9.52556193]
[1763619089327,0.65,144.26,144.23,9.52556193]
[1763619089506,0.65,144.26,144.21,35.45624777]
[1763619089706,0.65,144.26,144.23,2.59229891]
[1763619089907,0.65,144.26,144.22,9.52614997]
[1763619090524,0.65,144.26,144.22,6.93385106]
[1763619091128,0.65,144.26,144.22,10.97748192]
[1763619091725,7.5821331,144.26,144.22,6.93385106]
[1763619091930,10.97576396,144.26,144.21,10.97782442]
[1763619092116,0.65,144.25,144.21,10.97782442]
[1763619092310,1.64,144.24,144.21,10.97782442]
[1763619092516,0.65,144.23,144.21,10.97782442]
[1763619093518,0.65,144.23,144.21,6.93419356]
[1763619093714,0.65,144.23,144.2,6.93465124]
[1763619096225,7.58343386,144.23,144.19,6.93517164]
[1763619096526,11.62706472,144.23,144.19,6.93517164]
[1763619096707,0.65,144.22,144.19,6.93517164]
[1763619097820,1.64,144.21,144.19,6.93517164]
[1763619098223,2.29,144.21,144.19,6.93517164]
[1763619098419,0.65,144.2,144.17,6.93605981]
[1763619099709,11.62866251,144.2,144.16,6.93659393]
[1763619100233,0.65,144.19,144.16,6.93659393]
[1763619100437,1.64,144.18,144.16,6.93659393]
[1763619100936,0.65,144.17,144.16,6.93659393]
[1763619107923,0.65,144.17,144.15,6.93702544]
[1763619110637,0.65,144.17,144.14,6.93769945]
[1763619111554,0.65,144.17,144.14,10.98133031]
[1763619113552,0.65,144.17,144.14,6.93769945]
[1763619118184,7.58625596,144.17,144.13,6.93806663]
[1763619118351,0.65,144.17,144.13,6.93806663]
[1763619118552,0.67,144.16,144.13,6.93806663]
[1763619118876,1.64,144.15,144.13,6.93806663]
[1763619119249,0.67,144.14,144.13,6.93806663]
[1763619120557,2.31,144.15,144.13,6.93806663]
[1763619120745,0.67,144.14,144.12,10.98229308]
[1763619122274,0.67,144.14,144.11,10.98258775]
[1763619122476,0.67,144.14,144.07,6.94107031]
[1763619122477,4.04363086,144.13,144.07,6.94107031]
[1763619122772,1.64,144.12,144.09,10.98331319]
[1763619123067,1.64,144.12,144.09,4.04363086]
[1763619123249,0.67,144.11,144.09,4.04363086]
[1763619123651,0.67,144.11,144.07,6.94090809]
[1763619123853,0.67,144.11,144.07,10.98453895]
[1763619124066,0.67,144.11,144.08,4.04363086]
[1763619124472,0.67,144.11,144.09,4.04363086]
[1763619124648,0.67,144.11,144.08,4.04363086]
[1763619124854,0.67,144.11,144.08,10.98390088]
[1763619125670,0.67,144.11,144.08,6.94027002]
[1763619127957,1.64,144.1,144.07,6.94091077]
[1763619128356,0.67,144.09,144.07,6.94091077]
[1763619134485,11.65374292,144.09,144.06,0.2]
[1763619134783,4.04363086,144.08,144.06,0.2]
[1763619135081,1.64,144.07,144.06,0.2]
[1763619135257,2.31,144.07,144.06,0.2]
[1763619136283,31.41566117,144.07,144.06,0.2]
[1763619136594,41.20448886,144.07,144.06,0.2]
[1763619136909,4.04363086,144.03,144.01,0.2]
[1763619137071,2.31,144.02,144.01,0.2]
[1763619138376,2.31,144.02,144.01,7.14396222]
[1763619138996,0.67,144.04,144.01,11.18759308]
[1763619139164,1.64,144.03,144.01,11.18759308]
[1763619139368,0.67,144.04,144.01,11.18759308]
[1763619139769,1.64,144.03,144.01,7.14396222]
[1763619139969,1.64,144.03,144.01,11.18759308]
[1763619141474,1.64,144.03,144.01,7.14396222]
[1763619141672,2.35,144.03,144.01,7.14396222]
[1763619142990,0.71,144.02,144.01,0.2]
[1763619143291,0.71,144.02,144.01,7.14396222]
[1763619143680,0.71,144.02,144.01,0.2]
[1763619148599,0.71,144.02,144.01,7.14396222]
[1763619148804,1.64,144.03,144.01,7.14396222]
[1763619148979,1.64,144.02,144.01,7.14396222]
[1763619149302,1.64,144.02,144.01,0.2]
[1763619149518,2.31,144.02,144.01,0.2]
[1763619151921,2.31,144.02,144.01,7.14396222]
[1763619153606,1.64,144.02,144.01,7.14396222]
[1763619154106,0.67,144.02,144.01,7.14396222]
[1763619154304,2.31,144.02,144.01,7.14396222]
[1763619155008,9.53836508,144.05,144.01,7.14396222]
[1763619155212,3.26615878,144.05,144.01,7.44396222]
[1763619155391,2.31,144.04,144.01,7.14396222]
[1763619155711,0.67,144.04,144.01,7.14396222]
[1763619155901,2.31,144.03,144.01,7.14396222]
[1763619157733,1.64,144.03,144.01,7.44396222]
[1763619158021,1.64,144.03,144.01,7.14396222]
[1763619159518,2.31,144.03,144.01,7.14396222]
[1763619161793,1.64,144.03,144.01,7.14396222]
[1763619162599,2.31,144.03,144.01,7.14396222]
[1763619163746,1.64,144.02,144.01,7.14396222]
[1763619164849,13.88309486,144.08,144.01,27.10002656]
[1763619165017,0.67,144.05,144.01,27.40002656]
[1763619165217,1.64,144.04,144.01,27.40002656]
[1763619165435,1.64,144.04,144.02,2.59615878]
[1763619165837,0.67,144.04,144.02,2.59615878]
[1763619166353,1.64,144.03,144.02,2.59615878]
[1763619166648,1.64,144.03,144.02,9.53963885]
[1763619167729,0.67,144.06,144.02,9.53963885]
[1763619168038,1.64,144.05,144.02,26.89833903]
[1763619168441,2.31,144.05,144.02,26.89833903]
[1763619168853,9.53694963,144.09,144.03,0.3]
[1763619169058,2.31,144.07,144.04,2.59615878]
[1763619172441,1.64,144.07,144.05,2.59615878]
[1763619172636,2.35,144.07,144.05,2.59615878]
[1763619173261,2.35,144.07,144.04,26.89496465]
[1763619173640,1.64,144.07,144.05,2.59615878]
[1763619174037,2.35,144.07,144.05,2.59615878]
[1763619174245,2.35,144.07,144.06,2.59615878]
[1763619174638,0.71,144.07,144.06,2.59615878]
[1763619174849,2.35,144.07,144.06,2.59615878]